Cogmind - Beta 14 @@@ ROGUE MODE // 2024.11.29 @ 14:54:16 Player: opdo Result: Destroyed by P-60 Hacker with Shock Rifle Performance ------------- Evolutions (0) 0 Regions Visited (3) 600 Robots Destroyed (36) 180 Value Destroyed (1146) 1146 Prototype IDs (2) 40 Alien Tech Used (0) 0 Bonus (-263) -263 TOTAL SCORE: 1703 Bonus ------- Friendly Fire -263 Cogmind --------- Core Integrity 0/250 Matter 280/300 Energy 100/100 System Corruption 2% Temperature Cool (15) Movement Rolling (110) Location -7/Recycling Parts ------- > --- POWER (1) -------- (None) > --- PROPULSION (2) --- Subdweller Monowheel > --- UTILITY (2) ------ (None) > --- WEAPON (2) ------- Battle Rifle Subdweller Machine Gun > --- INVENTORY (5) ---- Subdweller Power Source Aluminum Leg Improved Terrain Scanner Mining Laser Peak State ------------ > --- POWER ------------ Light Angular Momentum Engine > --- PROPULSION ------- Subdweller Monowheel Subdweller Monowheel > --- UTILITY ---------- Scrap Shield > --- WEAPON ----------- Battle Rifle Battle Rifle > --- INVENTORY -------- Subdweller Power Source Aluminum Leg Improved Terrain Scanner Subdweller Machine Gun Mining Laser [Rating: 17] Favorites ----------- Power Subdweller Power Source Engine Subdweller Power Source Power Core Light Nuclear Core Propulsion Aluminum Leg Leg Aluminum Leg Wheel Subdweller Monowheel Utility Small Storage Unit Device Seismic Detector Storage Small Storage Unit Processor Targeting Computer Protection Scrap Shield Weapon Battle Rifle Ballistic Gun Battle Rifle Launcher Grenade Launcher Special Weapon Mining Laser Build | -11 -10 -10 -7 ------- Run | Yrd Mat Sub Rec Slots Evolved . | . . . . Power . | . . . . Propulsion . | . . . . Utility . | . . . . Weapon . | . . . . Parts Attached 41 | 7 8 25 1 Power 12 | 1 1 10 . Engine 8 | 1 . 7 . Core 4 | . 1 3 . Reactor . | . . . . Propulsion 7 | 2 2 3 . Treads . | . . . . Leg 5 | 2 2 1 . Wheel 2 | . . 2 . Hover . | . . . . Flight . | . . . . Utility 6 | 2 1 3 . Device 2 | 1 . 1 . Storage 1 | 1 . . . Processor 1 | . 1 . . Hackware . | . . . . Protection 2 | . . 2 . Artifact . | . . . . Weapon 16 | 2 4 9 1 Energy Gun . | . . . . Energy Cannon . | . . . . Ballistic Gun 11 | 2 3 5 1 Ballistic Cannon . | . . . . Launcher 2 | . . 2 . Special Weapon 3 | . 1 2 . Impact Weapon . | . . . . Slashing Weapon . | . . . . Piercing Weapon . | . . . . Special Melee Weapon . | . . . . Unidentified Prototypes . | . . . . Parts Lost 7 | . . 3 4 Power 2 | . . 1 1 Propulsion 1 | . . . 1 Utility 2 | . . 1 1 Weapon 2 | . . 1 1 Highest Loss Streak 4 | . . 2 4 To Critical Strikes . | . . . . Average Slot Usage (%) 93 | . 100 92 78 Engine 11 | . 5 12 14 Core 2 | . 8 . . Leg 18 | . 28 15 . Wheel 9 | . . 12 28 Device 1 | . 4 . . Storage 8 | . 14 6 . Processor 7 | . 9 6 . Protection 4 | . . 6 9 Ballistic Gun 23 | . 26 22 26 Launcher 2 | . . 3 . Special Weapon 1 | . 1 2 . Peak Build Rating 17 | 7 10 17 17 Average Rating 11 | 5 8 12 15 On Entrance 8 | . 7 10 17 Naked Turns . | . . . . Heaviest Build 31 | 13 14 31 31 Greatest Support 40 | 20 20 40 40 Greatest Overweight (x) 1 | 1 . 1 . Average Overweight (x) . | . . . . Largest Inventory Capacity 8 | 8 8 8 5 Average Capacity 6 | 7 8 6 5 Most Carried 8 | 6 8 8 5 Average Carried 6 | 3 7 6 4 Final Capacity 8 | 8 8 5 5 Final Carried 8 | 6 8 5 4 Class Distribution -------------------- 64% | Mutant 33% | Subdweller-Mutant Dominant Class ---------------- Mutant | -10/Materials Mutant | -10/Subcaves Subdweller-Mutant | -7/Recycling Resources | -11 -10 -10 -7 ----------- Run | Yrd Mat Sub Rec Matter Collected 1108 | 251 214 643 . Remotely . | . . . . Salvage Created 1101 | 33 347 721 . Parts 71 | 7 22 42 . Haulers Intercepted . | . . . . Recyclers Shooed . | . . . . Parts Field Recycled . | . . . . Retrieved Matter . | . . . . Parts Self-Destructed 11 | . . 11 . Prevented . | . . . . Kills | -11 -10 -10 -7 ------- Run | Yrd Mat Sub Rec Combat Hostiles Destroyed 29 | . 7 22 . Guns 12 | . 7 5 . AOE 17 | . . 17 . Classes Destroyed 7 | 1 2 4 . Tunneler 2 | 2 . . . Turret 2 | . . 2 . Watcher 2 | . 2 . . Swarmer 4 | . . 4 . Grunt 9 | . 7 2 . Sentry 1 | . . 1 . Subdweller 15 | . . 15 . Thug 1 | . . 1 . Best Kill Streak 9 | 2 3 9 . Combat Bots Only 9 | . 3 9 . Max Kills in Single Turn 5 | 1 1 5 . Gunslinging . | . . . . Exploded 5 | . . 5 . Melee . | . . . . Uniques/NPCs Destroyed . | . . . . Combat | -11 -10 -10 -7 -------- Run | Yrd Mat Sub Rec Hostile Shots Fired 204 | . 37 116 51 Missed 80 | . 12 49 19 Damage Taken 1591 | . 344 835 412 Core 262 | . 57 87 118 Absorbed by Shields . | . . . . Core Remaining (%) 100 | 100 . . . Volleys Fired 108 | 9 38 57 4 Largest 2 | 2 2 2 2 Hottest 100 | 40 100 100 55 Shots Fired 196 | 18 68 102 8 Gun 164 | 18 60 78 8 Cannon . | . . . . Launcher 17 | . . 17 . Special 15 | . 8 7 . Kinetic 164 | 18 60 78 8 Thermal 15 | . 8 7 . Explosive 17 | . . 17 . Electromagnetic . | . . . . Robot Hit Streak 26 | 8 16 26 5 Robot Miss Streak 4 | 1 2 4 1 Penetration Max . | . . . . Secondary Targets 2 | . . 2 . Max Gunslinging Chain 1 | . . 1 . Shots Hit Robots 129 | 14 45 64 6 Core Hits 71 | 7 20 43 1 Critical Kills . | . . . . Critical Parts Destroyed . | . . . . Critical Strikes . | . . . . Melee Attacks . | . . . . Impact . | . . . . Slashing . | . . . . Piercing . | . . . . Sneak Attacks . | . . . . Combat Hostiles . | . . . . Follow-up Attacks . | . . . . Damage Inflicted 3137 | 125 481 2406 125 Guns 1457 | 125 481 726 125 Cannons . | . . . . Explosions 1680 | . . 1680 . Melee . | . . . . Ramming . | . . . . Kinetic 1457 | 125 481 726 125 Thermal . | . . . . Explosive 1680 | . . 1680 . Electromagnetic . | . . . . Impact . | . . . . Slashing . | . . . . Piercing . | . . . . Highest Corruption 2 | . . . 2 Average Corruption 1 | . . . 1 Corruption Purged . | . . . . Corruption Blocked . | . . . . Effects 1 | . . . 1 Message Errors 1 | . . . 1 Overload Shots . | . . . . Overflow Damage 28 | . . 28 . Projectiles . | . . . . Explosions 28 | . . 28 . Melee . | . . . . Knockbacks . | . . . . Impact . | . . . . Kinetic . | . . . . Secondary . | . . . . Self-Inflicted Damage 60 | . . 60 . Shots 4 | . . 4 . Rammed . | . . . . Targets Rammed 2 | 1 1 . . Kicked 2 | 1 1 . . Crushed . | . . . . Highest Temperature 92 | . 92 5 45 Average Temperature 23 | . 24 5 24 Received Heat Transfer 594 | . 198 318 78 Siege Activations . | . . . . Robots Corrupted . | . . . . Combat Hostiles . | . . . . Parts Fried . | . . . . Impact Corruptions . | . . . . Robots Melted . | . . . . Combat Hostiles . | . . . . Parts Melted 1 | . . 1 . Heat Transferred . | . . . . Parts Sabotaged . | . . . . Parts Stolen . | . . . . Parts Stripped . | . . . . Power Chain Reactions . | . . . . Alert | -11 -10 -10 -7 ------- Run | Yrd Mat Sub Rec Peak Influence 201 | 10 201 . 37 Initial 37 | . 6 . 37 Average 53 | 4 66 . 32 Maximum Alert Level 1 | . 1 . . Low Security (%) 96 | 100 94 . 100 Level 1 3 | . 5 . . Level 2 . | . . . . Level 3 . | . . . . Level 4 . | . . . . Level 5 . | . . . . High Security . | . . . . Max Security . | . . . . Squads Dispatched 1 | . 1 . . Investigation 1 | . 1 . . Extermination . | . . . . Reinforcement . | . . . . Assault . | . . . . Garrison . | . . . . Intercept . | . . . . Searches Triggered . | . . . . Construction Impeded . | . . . . Haulers Reinforced . | . . . . Active Scanning Responses . | . . . . Cargo Convoy Interrupts . | . . . . Stealth | -11 -10 -10 -7 --------- Run | Yrd Mat Sub Rec Distress Signals 2 | . 2 . . Communications Jammed . | . . . . Distress Signals . | . . . . Times Spotted 48 | . 13 32 3 Peak Tracking Total 7 | . 3 7 3 Tactical Retreats 4 | . 2 2 . Traps | -11 -10 -10 -7 ------- Run | Yrd Mat Sub Rec Traps Triggered 1 | . 1 . . Indirectly . | . . . . Trap Hack Attempts . | . . . . Triggered . | . . . . Disarmed . | . . . . Reprogrammed . | . . . . Reused . | . . . . Traps Extracted . | . . . . Installed . | . . . . Triggered . | . . . . Machines | -11 -10 -10 -7 ---------- Run | Yrd Mat Sub Rec Machines Disabled 2 | . . 1 1 Max in Single Turn 1 | . . 1 1 Machines Repaired . | . . . . Machines Dismantled . | . . . . Machines Sabotaged . | . . . . Overloaded Fab Kills . | . . . . Hacking | -11 -10 -10 -7 --------- Run | Yrd Mat Sub Rec Machines Accessed 12 | . 10 . 2 Terminals 10 | . 8 . 2 Fabricators . | . . . . Repair Stations . | . . . . Recycling Units 2 | . 2 . . Scanalyzers . | . . . . Garrison Access . | . . . . Total Hacks 44 | . 38 . 6 Successful 14 | . 13 . 1 Failed 29 | . 24 . 5 Catastrophic 3 | . 1 . 2 Database Lockouts 1 | . 1 . . Manual 33 | . 27 . 6 Terminals 37 | . 31 . 6 Fabricators . | . . . . Repair Stations . | . . . . Recycling Units 7 | . 7 . . Scanalyzers . | . . . . Garrison Access . | . . . . Terminal Hacks 6 | . 6 . . Robot Analysis 1 | . 1 . . Prototype ID Bank 1 | . 1 . . Terminal Index 1 | . 1 . . Locate Traps 1 | . 1 . . Registered Components 1 | . 1 . . Zone Layout 1 | . 1 . . Fabricator Hacks . | . . . . Repair Station Hacks . | . . . . Recycling Unit Hacks 4 | . 4 . . Report Inventory 2 | . 2 . . Retrieve Components 2 | . 2 . . Scanalyzer . | . . . . Garrison Access Hacks . | . . . . Unauthorized Hacks 4 | . 3 . 1 Terminals 4 | . 3 . 1 Assimilate 1 | . 1 . . Botnet 2 | . 1 . 1 Operators 1 | . 1 . . Fabricators . | . . . . Repair Stations . | . . . . Recycling Units . | . . . . Scanalyzers . | . . . . Garrison Access . | . . . . Data Cores Recovered . | . . . . Used . | . . . . Hacking Detections 12 | . 10 . 2 Full Trace Events . | . . . . Feedback Events . | . . . . Feedback Blocked . | . . . . Robot Schematics Acquired . | . . . . Robots Built . | . . . . Authchips . | . . . . Time . | . . . . Total Robot Build Rating . | . . . . Part Schematics Acquired . | . . . . Parts Built . | . . . . Authchips . | . . . . Time . | . . . . Total Part Build Rating . | . . . . Parts Repaired . | . . . . Time . | . . . . Parts Recycled . | . . . . Recycled Matter . | . . . . Retrieved Matter . | . . . . Retrieved Components 5 | . 5 . . Parts Scanalyzed . | . . . . Part Schematics Acquired . | . . . . Parts Damaged . | . . . . Bothacking | -11 -10 -10 -7 ------------ Run | Yrd Mat Sub Rec Used RIF Installer . | . . . . Robots Hacked . | . . . . Non-combat . | . . . . Combat . | . . . . Robot Hacks Applied . | . . . . Relay Couplers Released . | . . . . Fabnet Peak Effective % . | . . . . Robots Rewired . | . . . . Allies Hacked . | . . . . Hacks Repelled . | . . . . Allies | -11 -10 -10 -7 -------- Run | Yrd Mat Sub Rec Total Allies . | . . . . Largest Group . | . . . . Highest-Rated Group . | . . . . Highest-Rated Ally . | . . . . Total Orders . | . . . . Ally Attacks . | . . . . Total Damage . | . . . . Kills . | . . . . Allies Corrupted . | . . . . Allies Melted . | . . . . Intel | -11 -10 -10 -7 ------- Run | Yrd Mat Sub Rec Robot Analysis Total 1 | . 1 . . Derelict Logs Recovered 2 | . . 2 . Drone Launches . | . . . . Drone Recoveries . | . . . . Exploration | -11 -10 -10 -7 ------------- Run | Yrd Mat Sub Rec Turns Passed 2284 | 113 578 1500 93 Spaces Moved 1571 | 62 332 1106 71 Core 6 | 6 . . . Treads . | . . . . Legs 895 | 56 332 507 . Wheels 670 | . . 599 71 Hover . | . . . . Flight . | . . . . Fastest Speed 50 | 50 120 110 110 Average Speed 116 | 116 120 115 110 Slowest Speed 190 | 120 120 190 110 Overloaded Moves . | . . . . Propulsion Burnouts . | . . . . Robots Hopped . | . . . . Cave-ins Triggered . | . . . . Exploration Rate (%) 45 | 3 79 71 29 Regions Visited 3 Branch Regions 2 Pre-discovered Areas . | . . . . Known Exits Taken . | . . . . Unknown Exits Taken 3 | 1 1 1 . Scrap Searched 2 | . . 2 . Spaces Dug 2 | . 2 . . Terrain Destroyed 80 | . 2 78 . Melee . | . . . . Projectile 2 | . 2 . . AOE 78 | . . 78 . Terrain Rammed . | . . . . Walls Destroyed . | . . . . Machines Disabled . | . . . . Actions | -11 -10 -10 -7 --------- Run | Yrd Mat Sub Rec Total 1817 | 84 432 1221 80 Wait 55 | . 48 7 . Move 1569 | 62 331 1105 71 Hop . | . . . . Pick Up 16 | 6 2 8 . Fast Attach 11 | 7 1 3 . Attach 5 | . . 4 1 Detach 2 | . . 2 . Swap 25 | . 7 18 . Drop 21 | . 4 17 . Fire 108 | 9 38 57 4 Melee . | . . . . Ram . | . . . . Kick 1 | . 1 . . Crush . | . . . . Escape Stasis . | . . . . Rewire 4 | . . . 4 Trap . | . . . . Miscellaneous . | . . . . Route ------- -11/Scrapyard -10/Materials (discovered 3 exits: [*Mat] / [*Min] / [*Sub]) -10/Subcaves (discovered 2 exits: [*Mat] / *Rec) -7/Recycling History --------- Turn | Location | Event 10 | -11/Scrapyard | Discovered new exit (range 16) 114 | -11/Scrapyard | Entered Materials 148 | -10/Materials | Discovered new exit (range 6) 172 | -10/Materials | Discovered new exit (range 14) 306 | -10/Materials | Build established: Mutant 559 | -10/Materials | Central database locked down 686 | -10/Materials | Discovered new exit (range 3) 692 | -10/Materials | Entered Subcaves 737 | -10/Subcaves | Shifting Twisted Machinery released Flamer 738 | -10/Subcaves | Shifting Twisted Machinery released Sub. Power Source 794 | -10/Subcaves | Ambushed by swarm of Subdwellers 794 | -10/Subcaves | Ambushed by Subdwellers from Twisted Machinery 794 | -10/Subcaves | Ambushed by Subdwellers from Twisted Machinery 794 | -10/Subcaves | Ambushed by Subdwellers from Twisted Machinery 796 | -10/Subcaves | Ambushed by Subdwellers from Twisted Machinery 796 | -10/Subcaves | Ambushed by Subdwellers from Twisted Machinery 821 | -10/Subcaves | Destroyed 9 combat bots 857 | -10/Subcaves | Lost 3 allies 950 | -10/Subcaves | Shifting Twisted Machinery released Sub. Monowheel 955 | -10/Subcaves | Shifting Twisted Machinery released Battle Rifle 1109 | -10/Subcaves | A swath of the cavern ceiling suddenly collapsed 1255 | -10/Subcaves | Learned location of 1 exit from Materials 1327 | -10/Subcaves | Discovered new exit (range 14) 1450 | -10/Subcaves | Ambushed by Subdweller buried in earth 1483 | -10/Subcaves | Shifting Twisted Machinery released Sub. Power Source 1486 | -10/Subcaves | Shifting Twisted Machinery released Sub. Machine Gun 1730 | -10/Subcaves | Build established: Subdweller-Mutant 1774 | -10/Subcaves | Discovered new exit (range 16) 1777 | -10/Subcaves | Core integrity fell below 50% 1784 | -10/Subcaves | Learned 2 Materials zone layouts 2101 | -10/Subcaves | A swath of the cavern ceiling suddenly collapsed 2192 | -10/Subcaves | Entered Recycling 2263 | -7/Recycling | Core integrity fell below 20% 2285 | -7/Recycling | Destroyed by P-60 Hacker with Shock Rifle Last Messages --------------- G-47 Trooper springs to life. Attempting to rewire L-41 Fighter. Scrap Shield destroyed. R-06 Scavenger collects Wheel. Attempting to rewire L-41 Fighter. D-53 Grenadier destroyed. Battle Rifle destroyed. Chain reaction triggered in Imp. Deuterium Engine. L-41 Fighter destroyed. U-05 Engineer destroyed. S-27 Virus destroyed. R-06 Scavenger collects Lgt. Ion Engine. Processing Tank disabled. U-05 Engineer builds a Wall. NNZCVZ#OVDNTTOPFTVH0JI4V3LQ2 Sub. Monowheel destroyed. Lgt. Angular Momentum Engine destroyed. U-05 Engineer lays Concrete. Destroyed Gravmag System. Map ----- +----------------------------------------------------+ | # ?# #?????????????????????????????? | | # ?######+###??##?????????????????????????? | | ? ??????# #???""#?????????????????????????? | | ???????????# ####T"#### #####????????????????? | | ???????????# ?????????????? | | # ####### ?????????????? | | # ?????????????? | | # ####### ##"Y"#??????????????? | | # """ """ ##??????? #???????????????????? | | # ? """ """ "#????????????????????????????? | | ?????""" """ T#????????????????????????????? | | ?? ??""" """ "#????????????????????????????? | | # """ """ ##????????????????????????????? | | # #?????????????????????????????? | | # #?????????????????????????????? | | # """ """ #?????????????????????????????? | | ?? ??""" """ #?????????????????????????????? | | ?? ??""" """ #?????????????????????????????? | | ? """ """ #?????????????????????????????? | | # """ """ #?########### #???????????????? | | # # #???????????????? | | # # #???????????????? | | # + +???????????????? | | # # #???????????????? | | # ########+######???????????????? | | # g @ r ????????? | | # ###### ????????? | | ?##### ######+#"""""#p ????????? | | ?????# # ! % *%|u """" """"" ?????????? | | ?????#?+ ! ! %= # """"" ""?????????????? | | ???????# ! + """"" ""?????????????? | | ???????# % =[]%% # ????????????????? | | ???????# ! # ?????????????????? | | ???????# + ?????????????????? | | ???????# ##### ??????????????????? | | ???????# ] #???? ??????????????????? | | ???????# #????? ??????????????????? | | ???????# #????????????????????????? | | ???????# %= #????????????????????????? | | ???????# % ! #????????????????????????? | | ???????##############????????????????????????? | | ?????????????????????????????????????????????? | | ?????????????????????????????????????????????? | | ?????????????????????????????????????????????? | | ?????????????????????????????????????????????? | | | | | | | | | | | +----------------------------------------------------+ Best States ------------- Heat Dissipation 25 Energy Generation 18 Energy Capacity 250 Matter Stores 300 Matter Capacity 300 Sight Range 16 Terrain Scan Range 16 Terrain Scan Density 10 Armor Coverage 800 Evasion (%) 55 Targeting Accuracy 5 Item Schematics ----------------- None Robot Schematics ------------------ None Fabricated ------------ Nothing Alien Tech Used ----------------- None Achievements -------------- None Challenges ------------ None Game ------ Seed HybridCommCycler Manual? 0 Play Time 00:18:39 Cumulative 59.5 hours Start 2024.11.29 @ 14:36:21 End 2024.11.29 @ 14:54:16 Sessions 1 Manual Loads 0 Difficulty Rogue Special Mode None Game No. 178 Rogue 176 Adventurer 2 Explorer 0 Win Type - Total 0 Types 0/0/0/0/0/0/0/0/0 Lore% 54 Gallery% 51 Achievement% 37 Wizard Run 0 Options --------- Layout 2 ASCII 0 Keyboard 0 Movement Arrows Keybinds 0 Fullscreen 2 Font 24/Smallcaps Map View 50x44 Zoom Use 0% Tactical HUD 0 Map Filters NONE Filters NONE Steam 1 RUN: e3927a95-aedf-4c27-b385-5fe77a9356db